[Event "*** SCC Grand Prix: Titled Tuesday Blitz"]
[Site "Chess.com"]
[Date "2020.09.08"]
[Round "1"]
[White "Makswolf200817"]
[Black "Sychev_Klementy"]
[Result "0-1"]
[WhiteElo "2432"]
[BlackElo "2871"]
[TimeControl "180+1"]
[EndTime "10:06:59 PDT"]
[Termination "Sychev_Klementy won by resignation"]

1. d4 {[%clk 0:02:58]} 1... Nf6 {[%clk 0:02:59.1]} 2. c4 {[%clk 0:02:57.3]} 2...
g6 {[%clk 0:02:58.9]} 3. Nf3 {[%clk 0:02:56.6]} 3... Bg7 {[%clk 0:02:58.5]} 4.
g3 {[%clk 0:02:57]} 4... d5 {[%clk 0:02:55.4]} 5. cxd5 {[%clk 0:02:54.9]} 5...
Nxd5 {[%clk 0:02:56.3]} 6. Bg2 {[%clk 0:02:55.2]} 6... Nb6 {[%clk 0:02:54.6]} 7.
Nc3 {[%clk 0:02:50.7]} 7... Nc6 {[%clk 0:02:52.1]} 8. O-O {[%clk 0:02:39.6]}
8... Kf8 {[%clk 0:02:42]} 9. e3 {[%clk 0:02:30.8]} 9... Kg8 {[%clk 0:02:42.9]}
10. Qe2 {[%clk 0:02:24.9]} 10... e5 {[%clk 0:02:36.6]} 11. d5 {[%clk 0:02:10.2]}
11... Ne7 {[%clk 0:02:33.6]} 12. e4 {[%clk 0:02:10.1]} 12... h5 {[%clk
0:02:18.4]} 13. h4 {[%clk 0:02:04.6]} 13... Bg4 {[%clk 0:02:17]} 14. Be3 {[%clk
0:01:55.5]} 14... c6 {[%clk 0:02:12.9]} 15. Rfd1 {[%clk 0:01:40]} 15... cxd5
{[%clk 0:02:10.8]} 16. exd5 {[%clk 0:01:39.7]} 16... Nf5 {[%clk 0:02:09.1]} 17.
Bc5 {[%clk 0:01:21.3]} 17... Rc8 {[%clk 0:02:05.6]} 18. Ne4 {[%clk 0:01:19.9]}
18... Nd7 {[%clk 0:01:56.1]} 19. Ba3 {[%clk 0:01:16.5]} 19... Nd4 {[%clk
0:01:54.9]} 20. Qd3 {[%clk 0:01:11.1]} 20... f5 {[%clk 0:01:53.8]} 21. Nd6
{[%clk 0:01:05.2]} 21... e4 {[%clk 0:01:51]} 22. Qe3 {[%clk 0:00:48.9]} 22...
Nc2 {[%clk 0:01:39.6]} 23. Qf4 {[%clk 0:00:42.8]} 23... exf3 {[%clk 0:00:57.3]}
24. Nxc8 {[%clk 0:00:39.2]} 24... fxg2 {[%clk 0:00:56.4]} 25. Ne7+ {[%clk
0:00:37.5]} 25... Kh7 {[%clk 0:00:56]} 26. Bd6 {[%clk 0:00:21.2]} 26... Nxa1
{[%clk 0:00:44.6]} 27. Rxa1 {[%clk 0:00:20.6]} 27... Re8 {[%clk 0:00:43.8]} 28.
Re1 {[%clk 0:00:19.6]} 28... Ne5 {[%clk 0:00:31.4]} 29. Rxe5 {[%clk 0:00:18]}
29... Qxd6 {[%clk 0:00:30.3]} 30. Re6 {[%clk 0:00:11.2]} 30... Qxf4 {[%clk
0:00:28.8]} 31. gxf4 {[%clk 0:00:12.1]} 31... Bf3 {[%clk 0:00:22]} 32. d6 {[%clk
0:00:11.6]} 32... Rd8 {[%clk 0:00:22]} 33. d7 {[%clk 0:00:06.5]} 33... Rxd7
{[%clk 0:00:20.4]} 34. Nxg6 {[%clk 0:00:04.9]} 0-1

[Event "*** SCC Grand Prix: Titled Tuesday Blitz"]
[Site "Chess.com"]
[Date "2020.09.08"]
[Round "1"]
[White "mr_gustavo"]
[Black "thedjoker98"]
[Result "0-1"]
[WhiteElo "2273"]
[BlackElo "2604"]
[TimeControl "180+1"]
[EndTime "10:06:59 PDT"]
[Termination "thedjoker98 won on time"]

1. e4 {[%clk 0:02:58.8]} 1... e5 {[%clk 0:03:00]} 2. Nf3 {[%clk 0:02:56.1]} 2...
Nc6 {[%clk 0:03:00.5]} 3. Bb5 {[%clk 0:02:54.9]} 3... g6 {[%clk 0:03:00.7]} 4.
O-O {[%clk 0:02:50.7]} 4... Bg7 {[%clk 0:03:00.7]} 5. c3 {[%clk 0:02:50.4]} 5...
d6 {[%clk 0:03:01]} 6. d4 {[%clk 0:02:49.4]} 6... Bd7 {[%clk 0:03:01.7]} 7. Re1
{[%clk 0:02:45.6]} 7... Nf6 {[%clk 0:03:01.4]} 8. Nbd2 {[%clk 0:02:33.8]} 8...
O-O {[%clk 0:03:01.5]} 9. Nf1 {[%clk 0:02:31]} 9... Nxd4 {[%clk 0:02:44.1]} 10.
Nxd4 {[%clk 0:02:27.8]} 10... exd4 {[%clk 0:02:43.3]} 11. Bxd7 {[%clk
0:02:26.7]} 11... Qxd7 {[%clk 0:02:44.2]} 12. cxd4 {[%clk 0:02:27]} 12... c6
{[%clk 0:02:44.3]} 13. Bf4 {[%clk 0:02:15.1]} 13... d5 {[%clk 0:02:39.2]} 14. e5
{[%clk 0:02:13.1]} 14... Ne8 {[%clk 0:02:39.5]} 15. Qd3 {[%clk 0:02:06.6]} 15...
Nc7 {[%clk 0:02:37.8]} 16. Rad1 {[%clk 0:02:04.1]} 16... Rae8 {[%clk 0:02:33.7]}
17. Bg3 {[%clk 0:02:03.4]} 17... f5 {[%clk 0:02:30.8]} 18. exf6 {[%clk
0:02:00.4]} 18... Bxf6 {[%clk 0:02:30.8]} 19. Nd2 {[%clk 0:01:51.6]} 19... Ne6
{[%clk 0:02:25]} 20. Nf3 {[%clk 0:01:49.5]} 20... Qg7 {[%clk 0:02:23]} 21. Be5
{[%clk 0:01:46.6]} 21... Bxe5 {[%clk 0:02:13.6]} 22. Nxe5 {[%clk 0:01:47.5]}
22... Nf4 {[%clk 0:02:13]} 23. Qg3 {[%clk 0:01:44.8]} 23... g5 {[%clk
0:02:08.8]} 24. f3 {[%clk 0:01:14.3]} 24... Re6 {[%clk 0:02:06.3]} 25. Qf2
{[%clk 0:01:11.5]} 25... Rfe8 {[%clk 0:02:02.6]} 26. Kf1 {[%clk 0:01:00.2]}
26... c5 {[%clk 0:01:38.4]} 27. g3 {[%clk 0:00:46]} 27... Nh3 {[%clk 0:01:38.1]}
28. Qg2 {[%clk 0:00:20.5]} 28... cxd4 {[%clk 0:01:37.7]} 29. Nd3 {[%clk
0:00:16.9]} 29... Rxe1+ {[%clk 0:01:30.5]} 30. Rxe1 {[%clk 0:00:17.3]} 30...
Rxe1+ {[%clk 0:01:29]} 31. Kxe1 {[%clk 0:00:17]} 31... Qd7 {[%clk 0:01:24]} 32.
Qe2 {[%clk 0:00:13.7]} 32... g4 {[%clk 0:01:12.1]} 33. f4 {[%clk 0:00:11.7]}
33... Ng1 {[%clk 0:01:09.6]} 34. Qf2 {[%clk 0:00:04.3]} 34... Nf3+ {[%clk
0:01:09.7]} 35. Kf1 {[%clk 0:00:04.4]} 35... Qf5 {[%clk 0:01:07.2]} 36. Qe2
{[%clk 0:00:03.8]} 36... Qe4 {[%clk 0:01:07.2]} 37. Ne5 {[%clk 0:00:02.8]} 37...
Nxe5 {[%clk 0:00:56]} 38. fxe5 {[%clk 0:00:03.7]} 38... Qh1+ {[%clk 0:00:56.2]}
39. Kf2 {[%clk 0:00:03.3]} 39... Qxh2+ {[%clk 0:00:56.5]} 40. Ke1 {[%clk
0:00:03.7]} 40... Qxg3+ {[%clk 0:00:52.5]} 41. Kd2 {[%clk 0:00:03.2]} 41... Qe3+
{[%clk 0:00:52.5]} 42. Qxe3 {[%clk 0:00:03.4]} 42... dxe3+ {[%clk 0:00:53.4]}
43. Kxe3 {[%clk 0:00:04.3]} 43... Kf7 {[%clk 0:00:52.9]} 44. Kd4 {[%clk
0:00:05.2]} 44... Ke6 {[%clk 0:00:53.1]} 0-1

[Event "*** SCC Grand Prix: Titled Tuesday Blitz"]
[Site "Chess.com"]
[Date "2020.09.08"]
[Round "1"]
[White "IveBeenThroughPain"]
[Black "Larina_Marija"]
[Result "1-0"]
[WhiteElo "2494"]
[BlackElo "2067"]
[TimeControl "180+1"]
[EndTime "10:06:59 PDT"]
[Termination "IveBeenThroughPain won by resignation"]

1. e4 {[%clk 0:03:00.9]} 1... c6 {[%clk 0:02:59.1]} 2. Nf3 {[%clk 0:03:00.7]}
2... d5 {[%clk 0:02:58.3]} 3. d3 {[%clk 0:03:00.7]} 3... dxe4 {[%clk 0:02:55.1]}
4. dxe4 {[%clk 0:03:01.6]} 4... Qxd1+ {[%clk 0:02:54.8]} 5. Kxd1 {[%clk
0:03:02.5]} 5... Bg4 {[%clk 0:02:49.7]} 6. Be2 {[%clk 0:03:02.4]} 6... Nd7
{[%clk 0:02:49.5]} 7. Ne1 {[%clk 0:03:02.1]} 7... Bxe2+ {[%clk 0:02:48.8]} 8.
Kxe2 {[%clk 0:03:02.8]} 8... e5 {[%clk 0:02:48]} 9. Nd3 {[%clk 0:03:02.8]} 9...
Ngf6 {[%clk 0:02:32.5]} 10. f3 {[%clk 0:03:02]} 10... Be7 {[%clk 0:02:06.4]} 11.
Be3 {[%clk 0:03:01.3]} 11... O-O {[%clk 0:02:05.8]} 12. Nd2 {[%clk 0:03:00.6]}
12... h6 {[%clk 0:01:53.3]} 13. Nc4 {[%clk 0:03:00.1]} 13... Rfe8 {[%clk
0:00:42]} 14. Ncxe5 {[%clk 0:02:42]} 14... Nxe5 {[%clk 0:00:40]} 15. Nxe5 {[%clk
0:02:42.3]} 15... a6 {[%clk 0:00:37.6]} 16. Nd3 {[%clk 0:02:36.9]} 16... Rad8
{[%clk 0:00:37.1]} 17. Rhd1 {[%clk 0:02:36.2]} 17... Rd7 {[%clk 0:00:34.8]} 18.
Kf2 {[%clk 0:02:19.7]} 18... Red8 {[%clk 0:00:33.8]} 19. Bb6 {[%clk 0:02:19.9]}
19... Re8 {[%clk 0:00:32.2]} 20. Nc5 {[%clk 0:02:00]} 20... Bxc5+ {[%clk
0:00:31.2]} 21. Bxc5 {[%clk 0:01:59.9]} 21... Red8 {[%clk 0:00:30.8]} 22. Rxd7
{[%clk 0:01:59.7]} 22... Rxd7 {[%clk 0:00:31.7]} 23. Ke2 {[%clk 0:01:59.8]}
23... Ne8 {[%clk 0:00:30.5]} 24. Rd1 {[%clk 0:01:59.2]} 24... Rxd1 {[%clk
0:00:30.2]} 25. Kxd1 {[%clk 0:01:58.9]} 25... Nc7 {[%clk 0:00:30.2]} 26. c4
{[%clk 0:01:57.5]} 26... f6 {[%clk 0:00:29.8]} 27. Kc2 {[%clk 0:01:56.8]} 27...
Kf7 {[%clk 0:00:30]} 28. Kd3 {[%clk 0:01:55.1]} 28... Ke6 {[%clk 0:00:30.5]} 29.
f4 {[%clk 0:01:54]} 29... g6 {[%clk 0:00:28.3]} 30. g4 {[%clk 0:01:53.6]} 30...
Ne8 {[%clk 0:00:17.4]} 31. f5+ {[%clk 0:01:53.2]} 31... gxf5 {[%clk 0:00:17.2]}
32. gxf5+ {[%clk 0:01:53.2]} 32... Kf7 {[%clk 0:00:17.3]} 33. Be3 {[%clk
0:01:47.5]} 33... h5 {[%clk 0:00:15.6]} 34. Bf4 {[%clk 0:01:48]} 34... Ng7
{[%clk 0:00:15.4]} 35. Kd4 {[%clk 0:01:45.9]} 35... Ne8 {[%clk 0:00:06.2]} 36.
Kc5 {[%clk 0:01:44.1]} 36... Ke7 {[%clk 0:00:05.7]} 37. Kb6 {[%clk 0:01:43.7]}
37... Nd6 {[%clk 0:00:05.1]} 38. Bxd6+ {[%clk 0:01:39.5]} 38... Kxd6 {[%clk
0:00:05.8]} 39. Kxb7 {[%clk 0:01:40.1]} 39... Kc5 {[%clk 0:00:06.3]} 40. Kxa6
{[%clk 0:01:33.7]} 40... Kxc4 {[%clk 0:00:05.5]} 41. e5 {[%clk 0:01:34.3]} 41...
fxe5 {[%clk 0:00:01.8]} 42. f6 {[%clk 0:01:34.9]} 42... e4 {[%clk 0:00:01.6]}
43. f7 {[%clk 0:01:35.5]} 43... e3 {[%clk 0:00:02.5]} 44. f8=Q {[%clk
0:01:35.8]} 44... e2 {[%clk 0:00:03.4]} 45. Qf7+ {[%clk 0:01:34.7]} 45... Kd4
{[%clk 0:00:02.5]} 46. Qe6 {[%clk 0:01:28.7]} 46... Kd3 {[%clk 0:00:02.6]} 47.
Kb6 {[%clk 0:01:28.5]} 47... Kd2 {[%clk 0:00:02.7]} 48. a4 {[%clk 0:01:26.6]}
48... e1=Q {[%clk 0:00:01.7]} 49. Qxe1+ {[%clk 0:01:26.6]} 49... Kxe1 {[%clk
0:00:02.6]} 50. a5 {[%clk 0:01:27.2]} 50... Kf2 {[%clk 0:00:02.9]} 51. a6 {[%clk
0:01:27.6]} 51... Kg2 {[%clk 0:00:03.5]} 52. a7 {[%clk 0:01:28.2]} 52... Kxh2
{[%clk 0:00:04.2]} 53. a8=Q {[%clk 0:01:28.3]} 53... h4 {[%clk 0:00:05.1]} 54.
Qxc6 {[%clk 0:01:28.8]} 54... h3 {[%clk 0:00:05.4]} 55. Qf3 {[%clk 0:01:28.4]}
55... Kg1 {[%clk 0:00:06.3]} 56. Qxh3 {[%clk 0:01:28.4]} 56... Kf2 {[%clk
0:00:05.9]} 57. b4 {[%clk 0:01:28.3]} 57... Ke2 {[%clk 0:00:06.8]} 58. Kc6
{[%clk 0:01:28.1]} 58... Kd2 {[%clk 0:00:07]} 59. b5 {[%clk 0:01:28.4]} 59...
Kc2 {[%clk 0:00:07.9]} 1-0

[Event "*** SCC Grand Prix: Titled Tuesday Blitz"]
[Site "Chess.com"]
[Date "2020.09.08"]
[Round "1"]
[White "plumalka"]
[Black "Shield12"]
[Result "0-1"]
[WhiteElo "2408"]
[BlackElo "2810"]
[TimeControl "180+1"]
[EndTime "10:07:00 PDT"]
[Termination "Shield12 won by resignation"]

1. e4 {[%clk 0:02:59.9]} 1... c5 {[%clk 0:03:00.3]} 2. Nf3 {[%clk 0:02:59.5]}
2... Nc6 {[%clk 0:03:01]} 3. d4 {[%clk 0:02:58.4]} 3... cxd4 {[%clk 0:03:01.9]}
4. Nxd4 {[%clk 0:02:58.9]} 4... Nf6 {[%clk 0:03:02.6]} 5. Nc3 {[%clk 0:02:58.8]}
5... d6 {[%clk 0:03:03]} 6. Bg5 {[%clk 0:02:58.5]} 6... Bd7 {[%clk 0:03:02.7]}
7. Bb5 {[%clk 0:02:48.5]} 7... e6 {[%clk 0:02:58.6]} 8. Bxc6 {[%clk 0:02:41.8]}
8... bxc6 {[%clk 0:02:59.3]} 9. Qf3 {[%clk 0:02:38.4]} 9... h6 {[%clk
0:02:55.9]} 10. Bh4 {[%clk 0:02:33.5]} 10... e5 {[%clk 0:02:47.3]} 11. Nf5
{[%clk 0:02:25.5]} 11... Bxf5 {[%clk 0:02:47.2]} 12. Qxf5 {[%clk 0:02:21.1]}
12... Qd7 {[%clk 0:02:47.3]} 13. Qxd7+ {[%clk 0:02:11.5]} 13... Nxd7 {[%clk
0:02:45.9]} 14. O-O-O {[%clk 0:02:10.6]} 14... Be7 {[%clk 0:02:43.6]} 15. Bxe7
{[%clk 0:02:05.2]} 15... Kxe7 {[%clk 0:02:44.5]} 16. Rd2 {[%clk 0:02:05.1]}
16... Rhd8 {[%clk 0:02:43.2]} 17. Rhd1 {[%clk 0:02:04.6]} 17... Nc5 {[%clk
0:02:41.4]} 18. f3 {[%clk 0:02:04.5]} 18... Rab8 {[%clk 0:02:40.4]} 19. b3
{[%clk 0:02:02.5]} 19... a5 {[%clk 0:02:38.8]} 20. a4 {[%clk 0:02:02.1]} 20...
g6 {[%clk 0:02:35.5]} 21. g4 {[%clk 0:01:55.5]} 21... Ne6 {[%clk 0:02:34.5]} 22.
Ne2 {[%clk 0:01:51.3]} 22... Rd7 {[%clk 0:02:33.9]} 23. Rd3 {[%clk 0:01:37.5]}
23... Rh8 {[%clk 0:02:31]} 24. h4 {[%clk 0:01:35.5]} 24... Rhd8 {[%clk
0:02:26.7]} 25. Rc3 {[%clk 0:01:34.7]} 25... Rc7 {[%clk 0:02:23]} 26. Kd2 {[%clk
0:01:27.1]} 26... d5 {[%clk 0:02:21.4]} 27. exd5 {[%clk 0:01:26.9]} 27... cxd5
{[%clk 0:02:18.7]} 28. Rxc7+ {[%clk 0:01:24.6]} 28... Nxc7 {[%clk 0:02:19.6]}
29. Nc3 {[%clk 0:01:24.7]} 29... d4 {[%clk 0:02:16.5]} 30. Ne4 {[%clk
0:01:24.3]} 30... f5 {[%clk 0:02:16.3]} 31. Nc5 {[%clk 0:01:20.7]} 31... Ne6
{[%clk 0:01:56.5]} 32. Nd3 {[%clk 0:01:09.1]} 32... e4 {[%clk 0:01:53.7]} 33.
fxe4 {[%clk 0:01:05.1]} 33... fxe4 {[%clk 0:01:54.6]} 34. Ne5 {[%clk 0:01:05.3]}
34... Rd5 {[%clk 0:01:49.9]} 35. Nxg6+ {[%clk 0:01:02.7]} 35... Kf6 {[%clk
0:01:47.9]} 36. h5 {[%clk 0:01:02.4]} 36... Kg5 {[%clk 0:01:44.1]} 37. Rg1
{[%clk 0:00:58.8]} 37... Rc5 {[%clk 0:01:31.4]} 38. Nh8 {[%clk 0:00:56]} 38...
e3+ {[%clk 0:01:28.1]} 39. Kd1 {[%clk 0:00:48.3]} 39... Rc7 {[%clk 0:01:19.8]}
40. Ng6 {[%clk 0:00:48.1]} 40... Nc5 {[%clk 0:01:12.8]} 41. Ne5 {[%clk 0:00:47]}
41... Ne4 {[%clk 0:01:07.6]} 42. Nf3+ {[%clk 0:00:44.9]} 42... Kf4 {[%clk
0:01:07.8]} 43. Nxd4 {[%clk 0:00:38.4]} 43... Rd7 {[%clk 0:01:07.7]} 44. c3
{[%clk 0:00:36.5]} 44... Nxc3+ {[%clk 0:01:06.1]} 45. Kc2 {[%clk 0:00:36.7]}
45... Rxd4 {[%clk 0:01:02.9]} 46. Kxc3 {[%clk 0:00:36.9]} 46... Rd8 {[%clk
0:01:03]} 47. b4 {[%clk 0:00:31.6]} 47... axb4+ {[%clk 0:01:01.7]} 48. Kxb4
{[%clk 0:00:32.5]} 48... e2 {[%clk 0:01:02.6]} 49. a5 {[%clk 0:00:22.6]} 49...
Rd1 {[%clk 0:01:01.2]} 50. g5 {[%clk 0:00:15.6]} 50... Rxg1 {[%clk 0:01:00.3]}
51. gxh6 {[%clk 0:00:16.1]} 51... e1=Q+ {[%clk 0:01:00.4]} 0-1

[Event "*** SCC Grand Prix: Titled Tuesday Blitz"]
[Site "Chess.com"]
[Date "2020.09.08"]
[Round "1"]
[White "The_Machine04"]
[Black "Korchmar_Vasiliy"]
[Result "0-1"]
[WhiteElo "2285"]
[BlackElo "2607"]
[TimeControl "180+1"]
[EndTime "10:07:02 PDT"]
[Termination "Korchmar_Vasiliy won on time"]

1. d4 {[%clk 0:02:49.2]} 1... d5 {[%clk 0:02:58.6]} 2. Bf4 {[%clk 0:02:47.9]}
2... Nf6 {[%clk 0:02:58.3]} 3. e3 {[%clk 0:02:44.4]} 3... e6 {[%clk 0:02:55.4]}
4. Nd2 {[%clk 0:02:42.1]} 4... Be7 {[%clk 0:02:49.4]} 5. Bd3 {[%clk 0:02:38.4]}
5... O-O {[%clk 0:02:48.9]} 6. Ngf3 {[%clk 0:02:29.9]} 6... c5 {[%clk 0:02:49]}
7. c3 {[%clk 0:02:29.3]} 7... b6 {[%clk 0:02:46.3]} 8. Ne5 {[%clk 0:02:27.1]}
8... Bb7 {[%clk 0:02:39.6]} 9. Qf3 {[%clk 0:02:21]} 9... c4 {[%clk 0:02:34.8]}
10. Bc2 {[%clk 0:02:02.5]} 10... b5 {[%clk 0:02:34.7]} 11. a3 {[%clk 0:01:54.6]}
11... Nfd7 {[%clk 0:02:32.9]} 12. h4 {[%clk 0:01:40.8]} 12... Nxe5 {[%clk
0:02:30.3]} 13. Bxe5 {[%clk 0:01:28.8]} 13... Nd7 {[%clk 0:02:31]} 14. Bxh7+
{[%clk 0:00:44.9]} 14... Kxh7 {[%clk 0:02:27.9]} 15. Qh5+ {[%clk 0:00:45.4]}
15... Kg8 {[%clk 0:02:28.1]} 16. Bxg7 {[%clk 0:00:45.6]} 16... Kxg7 {[%clk
0:02:06.2]} 17. Rh3 {[%clk 0:00:43.6]} 17... Bd6 {[%clk 0:01:31.7]} 18. Qg4+
{[%clk 0:00:35.8]} 18... Kh6 {[%clk 0:01:28]} 19. f4 {[%clk 0:00:21.3]} 19... f5
{[%clk 0:01:22.3]} 20. Qe2 {[%clk 0:00:14.9]} 20... Rg8 {[%clk 0:01:19.6]} 21.
Nf3 {[%clk 0:00:12.9]} 21... Nf6 {[%clk 0:01:13.8]} 22. Ng5 {[%clk 0:00:12.7]}
22... Qe7 {[%clk 0:01:12.5]} 23. O-O-O {[%clk 0:00:09.7]} 23... Ng4 {[%clk
0:01:12.9]} 24. Rg3 {[%clk 0:00:04.8]} 24... a5 {[%clk 0:01:02.7]} 25. Rxg4
{[%clk 0:00:04.1]} 25... fxg4 {[%clk 0:01:03.6]} 26. Qxg4 {[%clk 0:00:04.7]}
26... b4 {[%clk 0:01:04.5]} 27. Rh1 {[%clk 0:00:02.4]} 27... bxa3 {[%clk
0:01:02.2]} 28. bxa3 {[%clk 0:00:03.3]} 28... Bxa3+ {[%clk 0:01:01.8]} 29. Kc2
{[%clk 0:00:04.2]} 29... Bc6 {[%clk 0:01:01.9]} 30. Qh3 {[%clk 0:00:01.9]} 30...
Ba4+ {[%clk 0:01:02.8]} 31. Kd2 {[%clk 0:00:01.5]} 31... Rab8 {[%clk 0:01:03.7]}
32. Ke2 {[%clk 0:00:01.9]} 32... Rb2+ {[%clk 0:01:04.1]} 33. Kf3 {[%clk
0:00:02.8]} 33... Bc2 {[%clk 0:01:03.1]} 34. g4 {[%clk 0:00:02.8]} 34... Be4+
{[%clk 0:01:03.1]} 35. Nxe4 {[%clk 0:00:03.2]} 35... dxe4+ {[%clk 0:01:04]} 36.
Kg3 {[%clk 0:00:03.2]} 36... Re2 {[%clk 0:01:04.1]} 37. g5+ {[%clk 0:00:03.7]}
37... Kh7 {[%clk 0:01:04.6]} 38. Qg4 {[%clk 0:00:03.6]} 38... Rxe3+ {[%clk
0:01:05]} 39. Kf2 {[%clk 0:00:04.1]} 39... Rf3+ {[%clk 0:01:05.5]} 40. Ke2
{[%clk 0:00:04.6]} 40... Qf7 {[%clk 0:01:03.7]} 41. h5 {[%clk 0:00:04.3]} 41...
Qxf4 {[%clk 0:01:03.1]} 42. g6+ {[%clk 0:00:04.1]} 42... Kh8 {[%clk 0:01:01.3]}
43. Qxf4 {[%clk 0:00:02.3]} 43... Rxf4 {[%clk 0:01:01.6]} 44. Ke3 {[%clk
0:00:03.2]} 44... Bd6 {[%clk 0:00:53.2]} 45. d5 {[%clk 0:00:01.6]} 45... exd5
{[%clk 0:00:52.9]} 0-1

[Event "*** SCC Grand Prix: Titled Tuesday Blitz"]
[Site "Chess.com"]
[Date "2020.09.08"]
[Round "1"]
[White "K_A_S_T_O_R"]
[Black "bsnsun"]
[Result "1-0"]
[WhiteElo "2759"]
[BlackElo "2396"]
[TimeControl "180+1"]
[EndTime "10:07:05 PDT"]
[Termination "K_A_S_T_O_R won by checkmate"]

1. e4 {[%clk 0:02:58.8]} 1... c5 {[%clk 0:02:59.1]} 2. Nf3 {[%clk 0:02:58.5]}
2... d6 {[%clk 0:02:59.2]} 3. d4 {[%clk 0:02:58.4]} 3... cxd4 {[%clk 0:02:59.8]}
4. Nxd4 {[%clk 0:02:58.5]} 4... Nf6 {[%clk 0:03:00.6]} 5. Nc3 {[%clk 0:02:58.6]}
5... a6 {[%clk 0:03:01]} 6. Bg5 {[%clk 0:02:58.4]} 6... Nbd7 {[%clk 0:02:58.5]}
7. Bc4 {[%clk 0:02:57.4]} 7... e6 {[%clk 0:02:52.4]} 8. O-O {[%clk 0:02:49.6]}
8... Qb6 {[%clk 0:02:10.4]} 9. Qd2 {[%clk 0:02:29.8]} 9... Be7 {[%clk
0:02:07.5]} 10. Be3 {[%clk 0:02:01.2]} 10... Qxb2 {[%clk 0:01:50.8]} 11. Rab1
{[%clk 0:01:45.2]} 11... Qa3 {[%clk 0:01:50.8]} 12. Bxe6 {[%clk 0:01:41.5]}
12... fxe6 {[%clk 0:01:43.8]} 13. Nxe6 {[%clk 0:01:41.8]} 13... Kf7 {[%clk
0:01:37.9]} 14. Ng5+ {[%clk 0:01:36.6]} 14... Ke8 {[%clk 0:01:03.3]} 15. Nd5
{[%clk 0:01:28.1]} 15... Nxd5 {[%clk 0:00:49.5]} 16. Qxd5 {[%clk 0:01:24.9]}
16... Bxg5 {[%clk 0:00:32.4]} 17. Qxg5 {[%clk 0:00:57.6]} 17... Kf7 {[%clk
0:00:32]} 18. Rb3 {[%clk 0:00:46.9]} 18... Qa4 {[%clk 0:00:27.4]} 19. Qd5+
{[%clk 0:00:41.8]} 19... Ke7 {[%clk 0:00:26.6]} 20. Rd1 {[%clk 0:00:21.6]} 20...
Qc6 {[%clk 0:00:24.7]} 21. Qg5+ {[%clk 0:00:20.8]} 21... Nf6 {[%clk 0:00:24.3]}
22. Qxg7+ {[%clk 0:00:19.7]} 22... Ke6 {[%clk 0:00:18]} 23. Bg5 {[%clk
0:00:17.2]} 23... Nxe4 {[%clk 0:00:07.1]} 24. Qe7+ {[%clk 0:00:15.2]} 24... Kf5
{[%clk 0:00:07.1]} 25. Rf3+ {[%clk 0:00:15.7]} 25... Kg6 {[%clk 0:00:07.5]} 26.
Qf7+ {[%clk 0:00:13.2]} 26... Kxg5 {[%clk 0:00:07.7]} 27. Qg7+ {[%clk
0:00:13.6]} 27... Kh4 {[%clk 0:00:05.5]} 28. Rf4+ {[%clk 0:00:12.2]} 28... Kh5
{[%clk 0:00:04.9]} 29. g4+ {[%clk 0:00:11.6]} 29... Kh4 {[%clk 0:00:04.6]} 30.
Qh6# {[%clk 0:00:11.6]} 1-0

[Event "*** SCC Grand Prix: Titled Tuesday Blitz"]
[Site "Chess.com"]
[Date "2020.09.08"]
[Round "1"]
[White "WPWPWP-2015"]
[Black "daro94"]
[Result "0-1"]
[WhiteElo "2463"]
[BlackElo "2969"]
[TimeControl "180+1"]
[EndTime "10:07:06 PDT"]
[Termination "daro94 won on time"]

1. e4 {[%clk 0:02:48.4]} 1... c6 {[%clk 0:03:00.1]} 2. d4 {[%clk 0:02:46.4]}
2... d5 {[%clk 0:03:00.8]} 3. e5 {[%clk 0:02:47]} 3... Bf5 {[%clk 0:03:00.7]} 4.
Be3 {[%clk 0:02:47.2]} 4... e6 {[%clk 0:03:00.5]} 5. Nd2 {[%clk 0:02:45.3]} 5...
Ne7 {[%clk 0:02:59.3]} 6. c4 {[%clk 0:02:43.1]} 6... h6 {[%clk 0:02:56.3]} 7. f4
{[%clk 0:02:40.9]} 7... Nd7 {[%clk 0:02:55.5]} 8. Ngf3 {[%clk 0:02:40.2]} 8...
dxc4 {[%clk 0:02:49.4]} 9. Nxc4 {[%clk 0:02:38.6]} 9... Nd5 {[%clk 0:02:49.9]}
10. Bd2 {[%clk 0:02:33.5]} 10... N7b6 {[%clk 0:02:46.9]} 11. b3 {[%clk
0:02:28.6]} 11... Be7 {[%clk 0:02:46.3]} 12. Be2 {[%clk 0:02:27.3]} 12... O-O
{[%clk 0:02:46.5]} 13. O-O {[%clk 0:02:26.9]} 13... c5 {[%clk 0:02:44.2]} 14.
Kh1 {[%clk 0:02:21]} 14... Rc8 {[%clk 0:02:43]} 15. a4 {[%clk 0:02:11.7]} 15...
Nxc4 {[%clk 0:02:13.6]} 16. Bxc4 {[%clk 0:01:49.6]} 16... Bh7 {[%clk 0:02:07.1]}
17. a5 {[%clk 0:01:44.8]} 17... cxd4 {[%clk 0:01:56.8]} 18. Nxd4 {[%clk
0:01:44.3]} 18... Bc5 {[%clk 0:01:57.5]} 19. Nb5 {[%clk 0:01:33]} 19... a6
{[%clk 0:01:50.3]} 20. Nc3 {[%clk 0:01:16.5]} 20... Ne3 {[%clk 0:01:43.5]} 21.
Bxe3 {[%clk 0:01:13.5]} 21... Bxe3 {[%clk 0:01:44.4]} 22. Qf3 {[%clk 0:01:05.6]}
22... Qd4 {[%clk 0:01:34.6]} 23. Ne2 {[%clk 0:00:45.2]} 23... Qe4 {[%clk
0:01:28.8]} 24. Rad1 {[%clk 0:00:44.8]} 24... Rfd8 {[%clk 0:01:25.8]} 25. Qxe4
{[%clk 0:00:36.4]} 25... Bxe4 {[%clk 0:01:26.7]} 26. Nc3 {[%clk 0:00:36.7]}
26... Bc2 {[%clk 0:01:19.3]} 27. Rxd8+ {[%clk 0:00:28.3]} 27... Rxd8 {[%clk
0:01:20.2]} 28. Na4 {[%clk 0:00:24.4]} 28... Rd2 {[%clk 0:01:14.4]} 29. Nc3
{[%clk 0:00:10.9]} 29... Bd4 {[%clk 0:01:03.7]} 30. Ne2 {[%clk 0:00:08.9]} 30...
Bc5 {[%clk 0:01:02]} 31. h3 {[%clk 0:00:07.8]} 31... Bb4 {[%clk 0:00:56.1]} 32.
Kh2 {[%clk 0:00:05.6]} 32... Bxa5 {[%clk 0:00:55.5]} 33. Kg3 {[%clk 0:00:04.9]}
33... Bxb3 {[%clk 0:00:50]} 34. Bxb3 {[%clk 0:00:04.2]} 34... Rxe2 {[%clk
0:00:50.1]} 35. Rb1 {[%clk 0:00:03]} 35... Re3+ {[%clk 0:00:34.6]} 36. Kh2
{[%clk 0:00:02.2]} 36... Be1 {[%clk 0:00:30.5]} 37. Bc2 {[%clk 0:00:01.6]} 37...
Bg3+ {[%clk 0:00:30.4]} 38. Kg1 {[%clk 0:00:01.4]} 38... Bxf4 {[%clk 0:00:27.9]}
39. Rxb7 {[%clk 0:00:01]} 39... Bxe5 {[%clk 0:00:28.2]} 0-1